[Event "3rd Avagyan Memorial 2022"]
[Site "Jermuk"]
[Date "2022.06.28"]
[Round "9.4"]
[White "Petrosyan, Manuel"]
[Black "Gharibyan, Mamikon"]
[Result "1/2-1/2"]
[ECO "D02"]
[WhiteElo "2638"]
[BlackElo "2487"]
[Annotator "TA"]
[PlyCount "210"]
[EventDate "2022.06.20"]
[EventType "tourn"]
[EventCountry "ARM"]
[SourceTitle "playchess.com"]
[Source "ChessBase"]
[SourceQuality "1"]
[TimeControl "40/5400+30:1800+30"]

{[%evp 48,210,27,20,24,0,0,0,0,0,0,0,0,0,21,15,14,0,24,0,0,0,0,0,0,0,0,0,0,0,0,0,54,54,54,54,54,54,67,62,57,55,55,0,6,0,52,0,66,66,66,66,66,66,66,66,72,67,31,39,145,177,133,14,21,21,52,16,46,31,56,0,0,32,39,40,55,0,0,0,27,0,0,0,0,0,77,0,0,0,0,0,52,0,0,0,0,0,0,0,0,0,0,0,0,0,0,0,0,0,0,0,0,0,0,0,0,0,0,0,0,0,0,0,0,0,0,0,0,0,0,0,0,0,0,0,0,0,0,0,0,0,0,0,0,0,0,0,0,0,0,0,0,0,0,0,0,0,0,0,0,0,0,0,0]} 1. d4 {[%emt 2:23:57]} Nf6 {[%emt 0:00:11]} 2. Nf3 {[%emt 0:00:11]} d5 {[%emt 0:01:32]} 3. Bf4 {[%emt 0:00:22]} c5 {[%emt 0:00:47]} 4. e3 {[%emt 0:00:07]} Nc6 {[%emt 0:00:36]} 5. Nbd2 {[%emt 0:00:24]} Bg4 {[%emt 0:01:43]} 6. c3 {[%emt 0:00:30]} e6 {[%emt 0:00:30]} 7. Qb3 {[%emt 0:00:23]} Qc8 {[%emt 0:00:29]} 8. Nh4 {[%emt 0:00:20]} Bh5 {[%emt 0:07:16]} 9. h3 {[%emt 0:00:52]} Be7 {[%emt 0:03:07]} 10. g4 {[%emt 0:03:01]} Bg6 {[%emt 0:00:41]} 11. Nxg6 {[%emt 0:00:47]} hxg6 {[%emt 0:00:12]} 12. Be2 {[%emt 0:01:18]} Qd7 {[%emt 0:07:19]} 13. h4 {[%emt 0:15:49]} cxd4 {[%emt 0:07:51]} 14. exd4 {[%emt 0:01:37]} Bd6 {[%emt 0:06:40]} 15. Be3 {[%emt 0:00:10]} Qc7 {[%emt 0:02:45]} 16. O-O-O {[%emt 0:04:24]} O-O-O {[%emt 0:00:16]} 17. Kb1 {[%emt 0:04:15]} Kb8 {[%emt 0:01:00]} 18. Rdg1 {[%emt 0:05:19]} Ka8 {[%emt 0:06:43]} 19. Qd1 {[%emt 0:08:20]} Bf4 {[%emt 0:16:09]} 20. Bd3 {[%emt 0:01:58]} Bxe3 {[%emt 0:05:19]} 21. fxe3 {[%emt 0:00:11]} e5 {[%emt 0:00:06]} 22. Qf1 {[%emt 0:03:33]} Ne8 {[%emt 0:01:42]} 23. Qg2 {[%emt 0:14:28]} e4 {[%emt 0:02:26]} 24. Be2 {[%emt 0:00:06]} Nd6 {[%emt 0:00:16]} 25. Qg3 {[%emt 0:00:28]} f6 {[%emt 0:02:42]} 26. g5 {[%emt 0:06:51]} Ne7 {[%emt 0:06:28]} 27. h5 {[%emt 0:04:59]} gxh5 {[%emt 0:00:58]} 28. gxf6 {[%emt 0:04:25]} gxf6 {[%emt 0:00:27]} 29. Rxh5 {[%emt 0:00:36]} Rxh5 {[%emt 0:05:41]} 30. Bxh5 {[%emt 0:00:08]} Kb8 {[%emt 0:00:10]} 31. Qf2 {[%emt 0:04:59]} Rh8 {[%emt 0:00:43]} 32. Be2 {[%emt 0:04:43]} f5 {[%emt 0:03:56]} 33. a3 {[%emt 0:03:22]} a6 {[%emt 0:03:06]} 34. Nb3 {[%emt 0:02:45]} Nc4 {[%emt 0:01:40]} 35. Bxc4 {[%emt 0:00:51]} dxc4 {[%emt 0:01:09]} 36. Nc5 {[%emt 0:00:05]} Rh2 {[%emt 0:00:44]} 37. Rg2 {[%emt 0:03:05]} Rxg2 $1 {[%emt 0:02:44]} 38. Qxg2 Ka7 $1 {[%emt 0:00:06]} 39. Qf1 {[%emt 0:02:46]} b6 {[%emt 0:01:06]} (39... Qc6 $1 $11 40. Qxc4 Nd5) 40. Ne6 $14 {[%emt 0:00:05]} Qc6 {[%emt 0:00:28]} 41. Nf4 {[%emt 0:02:50]} Nd5 {[%emt 0:05:21]} 42. Qf2 {[%emt 0:00:58]} a5 {[%emt 0:03:40]} 43. Kc1 {[%emt 0:01:17]} Kb7 {[%emt 0:02:16]} 44. Nxd5 {[%emt 0:00:53]} Qxd5 {[%emt 0:00:02]} 45. Qg3 {[%emt 0:01:06]} (45. Kb1 $1 $14) 45... Qf7 $1 $11 {[%emt 0:07:18]} 46. Kd2 {[%emt 0:05:27]} Qh5 {[%emt 0:02:57]} (46... a4 $11) 47. Qg7+ {[%emt 0:06:29]} (47. Qe5 $14) 47... Ka6 {[%emt 0:01:40]} (47... Kc6 $11) 48. Qc7 $14 {[%emt 0:00:50]} b5 {[%emt 0:04:19]} 49. a4 $1 {[%emt 0:02:30]} (49. Qc6+ Ka7 $16) 49... bxa4 {[%emt 0:01:12]} 50. Qxc4+ {[%emt 0:00:05]} Kb6 {[%emt 0:00:38]} 51. Qc5+ {[%emt 0:00:58]} Kb7 {[%emt 0:02:23]} 52. Qb5+ {[%emt 0:05:15]} (52. Qxa5 Qh2+ 53. Kd1 Qg1+ 54. Kc2 Qf2+ 55. Kb1 Qf1+ 56. Ka2 Qc4+ 57. Kb1 Qf1+ 58. Ka2 Qc4+ 59. Kb1 Qf1+ $11) 52... Kc8 {[%emt 0:00:06]} 53. Qc6+ {[%emt 0:00:13]} (53. Qxa4 $6 Qh2+ 54. Kc1 Qf2 $16) 53... Kb8 {[%emt 0:01:05]} (53... Kd8 $14) 54. Qd6+ $16 {[%emt 0:01:19]} Kc8 {[%emt 0:01:52] [#]} 55. Qg3 {[%emt 0:01:08]} (55. c4 $1 $16) 55... Qh1 {[%emt 0:01:45]} 56. Qg8+ {[%emt 0:01:23]} Kc7 {[%emt 0:00:10]} 57. Qf7+ {[%emt 0:00:06]} Kb6 {[%emt 0:00:48]} 58. Qe6+ {[%emt 0:01:59]} Kb7 {[%emt 0:00:28]} 59. Qxf5 {[%emt 0:02:49]} (59. Qd7+ $14 Ka6 60. Qc6+ (60. Qxa4 Qh2+ 61. Kc1 Qg1+ 62. Kc2 Qxe3 $16) (60. Qxf5 Qh2+ 61. Kc1 Qg1+ 62. Kc2 Qxe3 $11) 60... Ka7 61. Qc5+ (61. Qxa4 Qg2+ 62. Kc1 Qf1+ 63. Qd1 Qc4 $16) 61... Ka6 62. Qc8+ (62. Qxf5 Qh2+ 63. Kc1 Qg1+ 64. Kc2 Qxe3 $11) 62... Ka7 63. Qc7+ (63. Qxf5 Qh2+ 64. Kd1 Qg1+ 65. Ke2 Qh2+ 66. Qf2 Qc7 $16) 63... Ka6 64. Qc6+ Ka7 65. Qd7+ (65. Qxa4 Qg2+ 66. Kc1 Qf1+ 67. Qd1 Qf2 $16) 65... Ka6 66. Qc8+ (66. Qxa4 Qh2+ 67. Kc1 Qg1+ 68. Kc2 Qxe3 $16) (66. Qxf5 Qg2+ 67. Kc1 Qg1+ 68. Kc2 Qxe3 $11) 66... Ka7 67. Qc5+ (67. Qxf5 Qh2+ 68. Kd1 Qg1+ 69. Ke2 Qh2+ 70. Qf2 Qc7 $16) 67... Ka6 68. Qc8+ (68. Qxf5 Qg2+ 69. Kc1 Qg1+ 70. Kc2 Qxe3 $11)) 59... Qg2+ {[%emt 0:00:09]} 60. Kd1 {[%emt 0:00:25]} ({Don't take} 60. Kc1 $6 Qg1+ 61. Kd2 (61. Kc2 Qxe3 62. Qb5+ Kc8 $11) 61... Qg2+ 62. Kd1 (62. Kc1 Qg1+ 63. Kd2 Qh2+ 64. Kc1 Qg1+ $16) 62... Qxb2 $16) 60... Qxb2 {[%emt 0:01:18]} 61. Qxe4+ {[%emt 0:00:05]} Kc7 {[%emt 0:00:34]} 62. Qe7+ {[%emt 0:00:37]} (62. Qc2 $1 $14 Qb5 63. Kc1) 62... Kc8 {[%emt 0:00:35]} 63. Qe8+ {[%emt 0:00:09]} Kb7 {[%emt 0:00:24]} 64. Qxa4 {[%emt 0:01:38]} Qxc3 {[%emt 0:00:01]} 65. Ke2 {[%emt 0:01:36]} Kb6 66. Qa2 {[%emt 0:00:33]} Kb5 {[%emt 0:00:38] [#]} (66... Kc6 $11) 67. Qd5+ {[%emt 0:00:24]} ({White should play} 67. Qd2 $1 $16 {[%cal Rd2c3]} Qc7 68. Qd3+ Kb4 69. Qb1+ Ka3 70. Kd1) 67... Kb6 $11 {[%emt 0:00:35]} 68. Qd6+ {[%emt 0:00:31]} Kb5 {[%emt 0:00:28]} 69. Qd7+ {[%emt 0:00:36]} Kb6 {[%emt 0:00:36]} (69... Ka6 $11) 70. Kf3 {[%emt 0:01:18]} (70. Qa4 $14) 70... Qc2 {[%emt 0:00:33]} 71. Qd8+ {[%emt 0:00:42]} Ka6 {[%emt 0:00:16]} 72. Qa8+ {[%emt 0:00:19]} Kb6 $1 {[%emt 0:00:06]} 73. Qb8+ {[%emt 0:00:02]} Ka6 {[%emt 0:00:04]} 74. Qd6+ {[%emt 0:00:35]} Kb7 {[%emt 0:00:30]} 75. Qd7+ {[%emt 0:00:40]} Kb6 {[%emt 0:00:02]} 76. Qe6+ {[%emt 0:00:13]} Kc7 {[%emt 0:00:25]} 77. d5 {[%emt 0:00:42]} a4 {[%emt 0:01:41]} 78. d6+ {[%emt 0:00:27]} Kb6 {[%emt 0:00:22]} 79. Kf4 {[%emt 0:01:29]} a3 {[%emt 0:01:01]} 80. d7+ {[%emt 0:00:28]} Kc7 {[%emt 0:00:05]} 81. d8=Q+ {[%emt 0:00:30]} Kxd8 {[%emt 0:00:05]} 82. Qd6+ {[%emt 0:00:11]} Ke8 {[%emt 0:00:13]} 83. Qxa3 {[%emt 0:00:07]} Qc7+ {[%emt 0:00:54]} 84. Kf3 $1 {[%emt 0:01:05]} Qf7+ {[%emt 0:00:12]} 85. Ke2 $1 {[%emt 0:00:15]} Qc4+ {[%emt 0:00:17]} 86. Kd2 {[%emt 0:00:22]} Qd5+ {[%emt 0:00:05]} 87. Ke1 {[%emt 0:00:39]} Qh1+ {[%emt 0:00:09]} 88. Kf2 {[%emt 0:00:04]} Qh2+ {[%emt 0:00:29]} 89. Kf3 {[%emt 0:00:07]} Qh3+ {[%emt 0:00:07]} 90. Ke4 {[%emt 0:00:06]} Qe6+ {[%emt 0:00:17]} 91. Kd4 {[%emt 0:00:05]} Qd7+ {[%emt 0:00:30]} 92. Ke5 {[%emt 0:00:40]} Qg7+ {[%emt 0:00:20]} 93. Kf4 {[%emt 0:00:24]} Qf6+ {[%emt 0:00:09]} 94. Kg3 $1 {[%emt 0:00:17]} Qe5+ {[%emt 0:00:25]} 95. Kg2 {[%emt 0:00:12]} Qe4+ {[%emt 0:01:47]} 96. Kf2 {[%emt 0:00:19]} Qh4+ {[%emt 0:00:16]} 97. Ke2 {[%emt 0:00:08]} Qc4+ {[%emt 0:00:35]} 98. Ke1 {[%emt 0:00:31]} Qh4+ {[%emt 0:00:29]} 99. Kd1 {[%emt 0:00:47]} Qh1+ {[%emt 0:00:17]} 100. Kd2 {[%emt 0:00:48]} Qg2+ {[%emt 0:00:27]} 101. Kc3 {[%emt 0:00:22]} Qc6+ {[%emt 0:00:05]} 102. Kd4 {[%emt 0:00:29]} Qd7+ {[%emt 0:00:18]} 103. Kc4 {[%emt 0:00:21]} Qe6+ {[%emt 0:00:24]} 104. Kb5 {[%emt 0:00:06]} Qd7+ {[%emt 0:00:17]} 105. Kb6 {[%emt 0:00:24]} Qe6+ {[%emt 0:00:28]} 1/2-1/2

[Event "3rd Avagyan Memorial 2022"]
[Site "Jermuk"]
[Date "2022.06.28"]
[Round "9.5"]
[White "Martirosyan, Haik M."]
[Black "Sargsyan, Shant"]
[Result "1-0"]
[ECO "B45"]
[WhiteElo "2652"]
[BlackElo "2641"]
[Annotator "TA"]
[PlyCount "91"]
[EventDate "2022.06.20"]
[EventType "tourn"]
[EventCountry "ARM"]
[SourceTitle "playchess.com"]
[Source "ChessBase"]
[SourceQuality "1"]
[TimeControl "40/5400+30:1800+30"]

{[%evp 22,91,12,16,35,28,17,9,10,33,59,7,11,0,0,0,50,45,37,31,30,35,93,68,79,57,100,99,100,91,80,58,100,109,155,155,183,189,183,162,162,155,170,173,272,273,272,272,273,265,265,272,258,233,233,232,221,210,335,310,447,435,420,414,4134,1600,6368,6360,5937,5908,5447,2852]} 1. e4 {[%emt 0:00:02]} c5 {[%emt 0:03:10]} 2. Nf3 {[%emt 0:00:08]} e6 {[%emt 0:00:31]} 3. d4 {[%emt 0:00:07]} cxd4 {[%emt 0:00:09]} 4. Nxd4 {[%emt 0:00:04]} Nf6 {[%emt 0:00:10]} 5. Nc3 {[%emt 0:00:06]} Nc6 {[%emt 0:00:05]} 6. Nxc6 {[%emt 0:00:06]} bxc6 {[%emt 0:00:08]} 7. e5 {[%emt 0:00:04]} Nd5 {[%emt 0:00:11]} 8. Ne4 {[%emt 0:00:10]} Qc7 {[%emt 0:00:09]} 9. f4 {[%emt 0:00:21]} Qb6 {[%emt 0:00:11]} 10. c4 {[%emt 0:00:06]} Bb4+ {[%emt 0:00:32]} 11. Ke2 {[%emt 0:00:14]} f5 {[%emt 0:00:31]} 12. exf6 {[%emt 0:00:12]} Nxf6 {[%emt 0:00:20] B45: Sicilian Four Knights.} 13. Be3 {[%emt 0:00:07]} Qd8 {[%emt 0:00:39]} 14. Nd6+ {[%emt 0:00:06]} Bxd6 {[%emt 0:00:14] The position is equal.} 15. Qxd6 {[%emt 0:00:06]} Bb7 {[%emt 0:00:25][%cal Oc6c5]} 16. Kd1 {[%emt 0:00:08]} (16. Rd1 $14) 16... c5 $11 {[%emt 0:01:59]} 17. Qxc5 {[%emt 0:00:29]} ({Don't play} 17. Bxc5 Ne4 18. Qe5 (18. Qd4 d6 $17) 18... Nxc5 19. Qxc5 Rf8 $15) 17... Be4 {[%emt 0:00:31] Prevents Bd3.} 18. Be2 {[%emt 0:01:06] [#]} Kf7 $146 {[%emt 0:05:49]} (18... Rc8 $11 19. Qxa7 O-O) ({Predecessor:} 18... d6 19. Qd4 O-O 20. Kc1 Qc7 21. b3 e5 22. fxe5 dxe5 23. Qc5 Qb7 24. Kb2 Nd5 25. cxd5 {1-0 (33) Vachier Lagrave,M (2749)-Praggnanandhaa,R (2608) Krasnaya Polyana 2021}) 19. Qd4 {[%emt 0:04:54]} Bxg2 {[%emt 0:06:18]} 20. Rg1 {[%emt 0:00:08]} Be4 {[%emt 0:00:42]} 21. b4 {[%emt 0:03:27]} Qb8 {[%emt 0:19:46]} (21... Qe7 $14) 22. Bd2 {[%emt 0:08:27]} Re8 {[%emt 0:06:26]} 23. a4 {[%emt 0:06:52]} e5 {[%emt 0:05:43]} 24. fxe5 {[%emt 0:02:27]} Qxe5 {[%emt 0:00:08]} 25. Qxe5 {[%emt 0:01:36] The board is on fire.} Rxe5 {[%emt 0:00:06]} 26. Bc3 {[%emt 0:02:09]} Rf5 {[%emt 0:06:05] White leaves nothing to chance now.} 27. Rf1 {[%emt 0:10:39] Against Rf2} Rg5 {[%emt 0:02:21]} (27... d5 $142) 28. Bd4 {[%emt 0:02:31]} d6 {[%emt 0:06:10]} 29. Ra3 {[%emt 0:03:42]} a6 {[%emt 0:07:10]} 30. Rg3 {[%emt 0:10:09]} Rxg3 {[%emt 0:01:14]} 31. hxg3 {[%emt 0:00:01]} Bc6 {[%emt 0:01:11]} 32. a5 {[%emt 0:01:07]} d5 {[%emt 0:04:43]} (32... Rb8 {was worth a try.}) 33. b5 $18 {[%emt 0:05:43]} axb5 {[%emt 0:03:16]} 34. cxb5 {[%emt 0:01:55]} Bxb5 {[%emt 0:00:05]} 35. Bxb5 {[%emt 0:00:06] [#] Strongly threatening a6. A strong pair of Bishops.} Rxa5 {[%emt 0:00:03]} 36. Bd3 {[%emt 0:00:59]} h6 {[%emt 0:05:13]} 37. Bxf6 {[%emt 0:03:46]} gxf6 {[%emt 0:00:14][%mdl 4096] Endgame KRB-KR} 38. Ke2 {[%emt 0:00:54]} Ra2+ {[%emt 0:06:23]} 39. Kf3 {[%emt 0:01:10]} Rh2 {[%emt 0:06:39]} (39... Ra3 $142) 40. Bf5 {[%emt 0:00:00]} h5 {[%emt 0:00:00]} (40... Rb2 $142 41. Re1 h5) 41. Rd1 {[%emt 0:03:20]} Kg7 {[%emt 0:02:32]} 42. Rxd5 {[%emt 0:00:17] [#] Hoping for Rd7+.} Kh6 {[%emt 0:00:07]} (42... h4 $142 43. Rd7+ Kg8) 43. Be4 {[%emt 0:01:35]} (43. Bd3 $142 Kg7 44. Rd7+ Kg8 45. Bc4+ Kh8 46. Rf7) 43... Rb2 {[%emt 0:03:49]} 44. Rd7 {[%emt 0:03:03]} f5 {[%emt 0:00:14]} 45. Bxf5 {[%emt 0:00:30] Kf4 would kill now.} Kg5 {[%emt 0:00:24]} 46. Rd5 {[%emt 0:00:44] Weighted Error Value: White=0.08 (flawless) /Black=0.25 (precise)} 1-0